Cogmind - Beta 15 @@@ ROGUE MODE // 2025.05.25 @ 13:41:56 Player: Duduxx Result: Destroyed by Fusion Bomb Trap Performance ------------- Evolutions (1) 500 Regions Visited (4) 800 Robots Destroyed (18) 90 Value Destroyed (510) 510 Prototype IDs (0) 0 Alien Tech Used (0) 0 Bonus (200) 200 TOTAL SCORE: 2100 Bonus ------- Entered Garrisons 200 Cogmind --------- Core Integrity 0/400 Matter 300/300 Energy 411/415 System Corruption 1% Temperature Cool (2) Movement Walking (190) Ox1 Location -9/Garrison Parts ------- > --- POWER (2) -------- Ion Engine Improved Ion Engine > --- PROPULSION (2) --- Aluminum Leg > --- UTILITY (3) ------ Heat Sink Small Storage Unit Weight Redist. System > --- WEAPON (2) ------- Field Laser Field Laser > --- INVENTORY (8) ---- Ion Engine Improved Ion Engine Light Armor Plating Medium Armor Plating Beam Rifle Field Laser Mace Peak State ------------ > --- POWER ------------ Ion Engine Improved Ion Engine > --- PROPULSION ------- Light Treads Light Treads > --- UTILITY ---------- Small Storage Unit Weight Redist. System Visual Processing Unit > --- WEAPON ----------- Field Laser Field Laser > --- INVENTORY -------- Heat Sink Light Armor Plating Medium Armor Plating Field Laser Field Laser Mace [Rating: 17] Favorites ----------- Power Ion Engine Engine Ion Engine Propulsion Light Treads Treads Light Treads Leg Aluminum Leg Utility Small Storage Unit Device Weight Redist. System Storage Small Storage Unit Processor Visual Processing Unit Weapon EM Pulse Gun Energy Gun EM Pulse Gun Ballistic Gun Light Assault Rifle Impact Weapon Mace Build | -11 -10 -9 -9 -9 ------- Run | Yrd Mat Mat Sto Gar Slots Evolved 2 | . . 2 . . Power 1 | . . 1 . . Propulsion . | . . . . . Utility 1 | . . 1 . . Weapon . | . . . . . Parts Attached 19 | 6 1 4 2 6 Power 4 | 1 . 1 1 1 Engine 4 | 1 . 1 1 1 Core . | . . . . . Reactor . | . . . . . Propulsion 4 | 2 . . . 2 Treads 2 | 2 . . . . Leg 2 | . . . . 2 Wheel . | . . . . . Hover . | . . . . . Flight . | . . . . . Utility 4 | 1 1 1 . 1 Device 2 | . . 1 . 1 Storage 1 | 1 . . . . Processor 1 | . 1 . . . Hackware . | . . . . . Protection . | . . . . . Artifact . | . . . . . Weapon 7 | 2 . 2 1 2 Energy Gun 5 | 1 . 2 1 1 Energy Cannon . | . . . . . Ballistic Gun 1 | 1 . . . . Ballistic Cannon . | . . . . . Launcher . | . . . . . Special Weapon . | . . . . . Impact Weapon 1 | . . . . 1 Slashing Weapon . | . . . . . Piercing Weapon . | . . . . . Special Melee Weapon . | . . . . . Unidentified Prototypes . | . . . . . Corrupted Parts 1 | . 1 . . . System Corruption 2 | . 2 . . . Parts Lost 8 | . . 1 4 3 Power 2 | . . . 2 . Propulsion 3 | . . . 1 2 Utility . | . . . . . Weapon 3 | . . 1 1 1 Highest Loss Streak 4 | . . 1 4 2 To Critical Strikes . | . . . . . Average Backups 4 | 1 2 4 7 6 Power . | . 1 . . 1 Propulsion . | . . . . . Utility 1 | . . . 2 2 Weapon 2 | . 1 3 3 2 Tool/Special . | . . . . . Unused Backups 8 | . . 2 . 6 Power 2 | . . . . 2 Propulsion . | . . . . . Utility 2 | . . . . 2 Weapon 4 | . . 2 . 2 Tool/Special . | . . . . . Average Slot Usage (%) 94 | . 96 94 92 93 Engine 17 | . 14 22 17 18 Treads 18 | . 28 22 20 2 Leg 4 | . . . . 16 Device 7 | . . 6 11 12 Storage 12 | . 14 11 11 11 Processor 10 | . 10 11 11 9 Energy Gun 18 | . 14 21 20 21 Ballistic Gun 4 | . 14 . . . Peak Build Rating 17 | 6 8 14 17 17 Average Rating 11 | 4 7 10 13 16 On Entrance 8 | . 6 8 14 15 Naked Turns . | . . . . . Heaviest Build 24 | 13 13 20 23 24 Greatest Support 46 | 40 40 46 46 26 Greatest Overweight (x) 1 | . . . . 1 Average Overweight (x) . | . . . . . Largest Inventory Capacity 8 | 8 8 8 8 8 Average Capacity 7 | 6 8 8 8 8 Most Carried 8 | 2 4 7 8 8 Average Carried 4 | 1 2 4 7 6 Final Capacity 8 | 8 8 8 8 8 Final Carried 7 | 2 4 7 6 7 Class Distribution -------------------- 78% | Mutant 21% | Scavenger-Mutant Dominant Class ---------------- Mutant | -10/Materials Mutant | -9/Materials Mutant | -9/Storage Scavenger-Mutant | -9/Garrison Resources | -11 -10 -9 -9 -9 ----------- Run | Yrd Mat Mat Sto Gar Matter Collected 561 | 246 42 50 62 161 Remotely . | . . . . . Salvage Created 664 | . 276 113 92 183 Parts 49 | . 21 7 7 14 Haulers Intercepted . | . . . . . Recyclers Shooed . | . . . . . Parts Field Recycled . | . . . . . Retrieved Matter . | . . . . . Parts Self-Destructed . | . . . . . Prevented . | . . . . . Kills | -11 -10 -9 -9 -9 ------- Run | Yrd Mat Mat Sto Gar Combat Hostiles Destroyed 16 | . 5 2 2 7 Guns 15 | . 4 2 2 7 AOE 1 | . 1 . . . Classes Destroyed 5 | . 3 1 . 1 Mechanic 1 | . 1 . . . Watcher 1 | . 1 . . . Swarmer 4 | . . . . 4 Grunt 9 | . 5 . 2 2 Sentry 3 | . . 2 . 1 Best Kill Streak 4 | . 3 1 1 4 Combat Bots Only 4 | . 2 1 1 4 Max Kills in Single Turn 2 | . 2 1 1 2 Gunslinging . | . . . . . Exploded 1 | . 1 . . . Melee . | . . . . . Uniques/NPCs Destroyed . | . . . . . Combat | -11 -10 -9 -9 -9 -------- Run | Yrd Mat Mat Sto Gar Hostile Shots Fired 130 | . 21 8 73 28 Missed 35 | . 6 4 22 3 Hits 95 | . 15 4 51 25 Projectile 95 | . 15 4 51 25 Damage Taken 1247 | . 165 61 497 524 Core 459 | . 36 . 103 320 Absorbed by Shields . | . . . . . Core Remaining (%) 92 | 100 85 . . . Volleys Fired 48 | . 20 4 9 15 Largest 2 | . 2 2 2 2 Hottest 126 | . 60 103 103 126 Shots Fired 96 | . 40 8 18 30 Gun 96 | . 40 8 18 30 Cannon . | . . . . . Launcher . | . . . . . Special . | . . . . . Kinetic 20 | . 20 . . . Thermal 40 | . . 1 9 30 Explosive . | . . . . . Electromagnetic 36 | . 20 7 9 . Robot Hit Streak 8 | . 6 4 6 8 Robot Miss Streak 4 | . 4 1 3 4 Penetration Max . | . . . . . Secondary Targets 2 | . 1 . . 1 Max Gunslinging Chain 1 | . 1 . . 1 Shots Hit Robots 53 | . 21 6 10 16 Core Hits 31 | . 15 4 3 9 Critical Kills . | . . . . . Critical Parts Destroyed . | . . . . . Critical Strikes 2 | . 1 . 1 . Burn 1 | . . . 1 . Corrupt 1 | . 1 . . . Melee Attacks 3 | . . . . 3 Impact 3 | . . . . 3 Slashing . | . . . . . Piercing . | . . . . . Sneak Attacks . | . . . . . Combat Hostiles . | . . . . . Follow-up Attacks . | . . . . . Damage Inflicted 876 | . 304 120 142 310 Guns 767 | . 247 74 136 310 Cannons . | . . . . . Explosions 103 | . 57 46 . . Melee . | . . . . . Ramming 6 | . . . 6 . Kinetic 94 | . 94 . . . Thermal 481 | . 57 63 51 310 Explosive . | . . . . . Electromagnetic 295 | . 153 57 85 . Impact . | . . . . . Slashing . | . . . . . Piercing . | . . . . . Highest Corruption 4 | . 4 . 1 1 Average Corruption 1 | . 2 . 1 1 Corruption Purged . | . . . . . Corruption Blocked . | . . . . . Effects 7 | . 5 . . 2 Message Errors 2 | . 1 . . 1 Matter Fused 1 | . 1 . . . Energy Discharges 1 | . 1 . . . Data Loss (minor) 1 | . 1 . . . Alerts 2 | . 1 . . 1 Overload Shots . | . . . . . Overflow Damage . | . . . . . Projectiles . | . . . . . Explosions . | . . . . . Melee . | . . . . . Knockbacks . | . . . . . Impact . | . . . . . Kinetic . | . . . . . Secondary . | . . . . . Self-Inflicted Damage . | . . . . . Shots . | . . . . . Rammed 2 | . . . 2 . Targets Rammed 2 | . . . 2 . Kicked . | . . . . . Crushed . | . . . . . Highest Temperature 543 | . 70 57 214 543 Average Temperature 117 | . 33 24 90 205 Received Heat Transfer 207 | . 90 9 63 45 Effects 8 | . . . . 8 Shutdowns 2 | . . . . 2 Energy Bleed 2 | . . . . 2 Matter Decay 1 | . . . . 1 Damage (core) 3 | . . . . 3 Siege Activations . | . . . . . Martial Activations . | . . . . . Shielding Activations . | . . . . . Robots Disrupted . | . . . . . Combat Hostiles . | . . . . . Robots Corrupted . | . . . . . Combat Hostiles . | . . . . . Parts Fried 1 | . . 1 . . Impact Corruptions . | . . . . . Robots Melted . | . . . . . Combat Hostiles . | . . . . . Parts Melted 1 | . . . . 1 Heat Transferred 872 | . 50 87 185 550 Parts Sabotaged . | . . . . . Parts Stolen . | . . . . . Parts Stripped . | . . . . . Power Chain Reactions 2 | . 1 1 . . Alert | -11 -10 -9 -9 -9 ------- Run | Yrd Mat Mat Sto Gar Maximum Alert Level . | . . . . . Low Security (%) 100 | 100 100 100 100 100 Level 1 . | . . . . . Level 2 . | . . . . . Level 3 . | . . . . . Level 4 . | . . . . . Level 5 . | . . . . . High Security . | . . . . . Max Security . | . . . . . Peak Influence 150 | . 69 30 41 150 Initial 12 | . . 11 12 . Average 28 | . 31 11 11 57 Influence Increases 422 | . 136 65 51 170 Destroy 0b10 Robot/C 320 | . 100 40 40 140 Destroy 0b10 Robot/NC 10 | . 10 . . . Destroy Leader 62 | . 22 20 10 10 Destroy Structure 15 | . 4 5 1 5 Lose Combat Pursuer 15 | . . . . 15 Influence Decreases 282 | . 107 64 81 30 Entered New Map 36 | . . 18 18 . Time Decay 185 | . 107 36 42 . Lost Part 61 | . . 10 21 30 Squads Dispatched 3 | . 2 . 1 . Investigation . | . . . . . Extermination . | . . . . . Reinforcement 3 | . 2 . 1 . Assault . | . . . . . Garrison . | . . . . . Intercept . | . . . . . Searches Triggered . | . . . . . Construction Impeded 1 | . . . 1 . Haulers Reinforced . | . . . . . Active Scanning Responses . | . . . . . Cargo Convoy Interrupts . | . . . . . Stealth | -11 -10 -9 -9 -9 --------- Run | Yrd Mat Mat Sto Gar Distress Signals 2 | . 1 . 1 . Communications Jammed . | . . . . . Distress Signals . | . . . . . Times Spotted 27 | . 8 2 10 7 Peak Tracking Total 7 | . 2 2 7 2 Tactical Retreats 1 | . . . . 1 Traps | -11 -10 -9 -9 -9 ------- Run | Yrd Mat Mat Sto Gar Traps Triggered 10 | . 1 . 6 3 Indirectly . | . . . . . Trap Hack Attempts . | . . . . . Triggered . | . . . . . Disarmed . | . . . . . Reprogrammed . | . . . . . Reused . | . . . . . Traps Extracted . | . . . . . Installed . | . . . . . Triggered . | . . . . . Machines | -11 -10 -9 -9 -9 ---------- Run | Yrd Mat Mat Sto Gar Machines Disabled . | . . . . . Max in Single Turn . | . . . . . Machines Repaired . | . . . . . Machines Dismantled . | . . . . . Machines Sabotaged . | . . . . . Overloaded Fab Kills . | . . . . . Hacking | -11 -10 -9 -9 -9 --------- Run | Yrd Mat Mat Sto Gar Machines Accessed 2 | . . . 2 . Terminals 1 | . . . 1 . Fabricators . | . . . . . Repair Stations . | . . . . . Recycling Units . | . . . . . Scanalyzers . | . . . . . Garrison Access 1 | . . . 1 . Total Hacks 4 | . . . 4 . Successful 3 | . . . 3 . Failed 1 | . . . 1 . Catastrophic . | . . . . . Database Lockouts . | . . . . . Manual . | . . . . . Terminals 2 | . . . 2 . Fabricators . | . . . . . Repair Stations . | . . . . . Recycling Units . | . . . . . Scanalyzers . | . . . . . Garrison Access 2 | . . . 2 . Terminal Hacks 2 | . . . 2 . Record 1 | . . . 1 . Robot Analysis 1 | . . . 1 . Fabricator Hacks . | . . . . . Repair Station Hacks . | . . . . . Recycling Unit Hacks . | . . . . . Scanalyzer . | . . . . . Garrison Access Hacks 1 | . . . 1 . Unlock Access 1 | . . . 1 . Unauthorized Hacks . | . . . . . Terminals . | . . . . . Fabricators . | . . . . . Repair Stations . | . . . . . Recycling Units . | . . . . . Scanalyzers . | . . . . . Garrison Access . | . . . . . Data Cores Recovered . | . . . . . Used . | . . . . . Hacking Detections 1 | . . . 1 . Full Trace Events . | . . . . . Feedback Events . | . . . . . Feedback Blocked . | . . . . . Robot Schematics Acquired . | . . . . . Robots Built . | . . . . . Authchips . | . . . . . Time . | . . . . . Total Robot Build Rating . | . . . . . Part Schematics Acquired . | . . . . . Parts Built . | . . . . . Authchips . | . . . . . Time . | . . . . . Total Part Build Rating . | . . . . . Parts Repaired . | . . . . . Time . | . . . . . Parts Recycled . | . . . . . Recycled Matter . | . . . . . Retrieved Matter . | . . . . . Retrieved Components . | . . . . . Parts Scanalyzed . | . . . . . Part Schematics Acquired . | . . . . . Parts Damaged . | . . . . . Bothacking | -11 -10 -9 -9 -9 ------------ Run | Yrd Mat Mat Sto Gar Used RIF Installer . | . . . . . Robots Hacked . | . . . . . Non-combat . | . . . . . Combat . | . . . . . Robot Hacks Applied . | . . . . . Relay Couplers Released . | . . . . . Fabnet Peak Effective % . | . . . . . Robots Rewired 3 | . . . . 3 Allies Hacked . | . . . . . Hacks Repelled . | . . . . . Allies | -11 -10 -9 -9 -9 -------- Run | Yrd Mat Mat Sto Gar Total Allies 3 | . . . . 3 Largest Group 3 | . . . . 3 Highest-Rated Group 72 | . . . . 72 Highest-Rated Ally 24 | . . . . 24 Total Orders . | . . . . . Ally Attacks . | . . . . . Total Damage . | . . . . . Kills . | . . . . . Allies Corrupted . | . . . . . Allies Melted . | . . . . . Intel | -11 -10 -9 -9 -9 ------- Run | Yrd Mat Mat Sto Gar Active Infowar (turns) 723 | . 223 135 168 197 Optics 723 | . 223 135 168 197 Robot Analysis Total 1 | . . . 1 . Derelict Logs Recovered . | . . . . . Drone Launches . | . . . . . Drone Recoveries . | . . . . . Exploration | -11 -10 -9 -9 -9 ------------- Run | Yrd Mat Mat Sto Gar Turns Passed 916 | 78 290 135 177 236 Spaces Moved 449 | 50 145 63 74 117 Core 13 | 11 . . . 2 Treads 346 | 39 145 63 74 25 Legs 90 | . . . . 90 Wheels . | . . . . . Hover . | . . . . . Flight . | . . . . . Fastest Speed 50 | 50 160 160 160 100 Average Speed 149 | 135 160 160 160 129 Slowest Speed 190 | 160 160 160 160 190 Overloaded Moves . | . . . . . Propulsion Burnouts . | . . . . . Robots Hopped . | . . . . . Potential Cave-ins . | . . . . . Cave-ins Triggered . | . . . . . Exploration Rate (%) 16 | 4 32 10 20 15 Regions Visited 4 Branch Regions 1 Pre-discovered Areas . | . . . . . Known Exits Taken 1 | . . . 1 . Unknown Exits Taken 3 | 1 1 1 . . Scrap Searched . | . . . . . Spaces Dug . | . . . . . Terrain Destroyed 8 | . 3 5 . . Melee . | . . . . . Projectile . | . . . . . AOE 8 | . 3 5 . . Terrain Rammed . | . . . . . Walls Destroyed . | . . . . . Machines Disabled . | . . . . . Actions | -11 -10 -9 -9 -9 --------- Run | Yrd Mat Mat Sto Gar Total 587 | 57 167 91 107 165 Wait 16 | . . 9 7 . Move 446 | 49 144 62 74 117 Hop . | . . . . . Pick Up 16 | 2 2 8 1 3 Fast Attach 23 | 6 1 1 12 3 Attach 7 | . . 3 2 2 Detach 2 | . . 1 . 1 Swap 2 | . . . . 2 Drop 3 | . . 3 . . Fire 48 | . 20 4 9 15 Melee 3 | . . . . 3 Ram . | . . . . . Kick . | . . . . . Crush 2 | . . . 2 . Escape Stasis . | . . . . . Rewire 19 | . . . . 19 Trap . | . . . . . Miscellaneous . | . . . . . Route ------- -11/Scrapyard -10/Materials -9/Materials -9/Storage -9/Garrison History --------- Turn | Location | Event 14 | -11/Scrapyard | Discovered new exit (range 14) 79 | -11/Scrapyard | Entered Materials 300 | -10/Materials | Build established: Mutant 317 | -10/Materials | Discovered new exit (range 18) 369 | -10/Materials | Entered another Materials area 369 | -9/Materials | Evolved 2 slots: Power x1, Utility x1 418 | -9/Materials | Discovered new exit (range 18) 504 | -9/Materials | Entered Storage 681 | -9/Storage | Identified exit to Garrison 681 | -9/Storage | Entered Garrison 708 | -9/Garrison | Lost 4 parts (2p1n1w) 717 | -9/Garrison | Triggered checkpoint 845 | -9/Garrison | Triggered checkpoint 869 | -9/Garrison | Core integrity fell below 50% 872 | -9/Garrison | Core integrity fell below 20% 917 | -9/Garrison | Destroyed by Fusion Bomb Trap Last Messages --------------- 00870_ Overheating: Core damaged (-80). 00872_ Overheating: Core damaged (-40). 00873_ Overheating: Matter decay (-48). 00875_ Acquired 15 matter. 00877_ Triggered Alarm Trap. 00877_ An alarm sounds. 00878_ Discarded Visual Processing Unit. 00881_ Acquired 43 matter. 00892_ Attempting to rewire X-57 Shotgunner. 00898_ X-57 Shotgunner rewired. 00899_ Attempting to rewire X-57 Shotgunner. 00908_ X-57 Shotgunner rewired. 00910_ Attempting to rewire X-57 Shotgunner. 00911_ X-57 Shotgunner rewired. 00917_ Triggered Fusion Bomb Trap. 00917_ An explosion rips through the floor. 00917_ Aluminum Leg destroyed. Map ----- +----------------------------------------------------+ | ????????????? ??????????????????#" #??????????? | | ????????????? ??????????????????#"# #??????????? | | ?????????????# #???????????????????# #??????????? | | ?????????????# #???????????????????# ###????????? | | ?????????????# #???????????????????# #????????? | | ?????????????# #???????????????????# ! #????????? | | ?????????????# #???????????????????# #????????? | | ?????????????# #???????????????????# ###????????? | | ?????????????# #???????????????????# #??????????? | | ?????????????# ########????????????# #??????????? | | ?????????????# #????????????#^#??????????? | | ?????????????# ############## #??????????? | | ?????????????# ##### #??????????? | | ?????????????# #???# ################??????????? | | ?????????????# #???# #?????????????????????????? | | ?????????????# #???# #?????????????????????????? | | ?????????????# #???# #?????????????????????????? | | ?????????????# #???# ###???????????????????????? | | ?????????????# #???# #???????????????????????? | | ?????????????# #???# #???????????????????????? | | ?????????????# #???# #???????????????????????? | | ?????????????# #???######???????????????????????? | | ?????????????# #????????????????????????????????? | | ???????????### ############?????????????????????? | | ???????????# *%= #?????????????????????? | | ???????????# % == @ #?????????????????????? | | ???????????##"### **%### #?????????????????????? | | ????????????#!#?# %"+ # xx#?????????????????????? | | ????????????###?######?# x #?????????????????????? | | ???????????????????????# #?????????????????????? | | ???????????????????????# #?????????????????????? | | ???????????????????????# #?????????????????????? | | ???????????????????????#####?????????????????????? | | ?????????????????????????????????????????????????? | | ?????????????????????????????????????????????????? | | ?????????????????????????????????????????????????? | | ?????????????????????????????????????????????????? | | ?????????????????????????????????????????????????? | | ?????????????????????????????????????????????????? | | ?????????????????????????????????????????????????? | | ?????????????????????????????????????????????????? | | ?????????????????????????????????????????????????? | | ?????????????????????????????????????????????????? | | ?????????????????????????????????????????????????? | | ?????????????????????????????????????????????????? | | | | | | | | | | | +----------------------------------------------------+ Best States ------------- Heat Dissipation 38 Energy Generation 17 Energy Capacity 415 Matter Stores 300 Matter Capacity 300 Sight Range 18 Terrain Scan Density 10 Additional Mass Support 6 Evasion (%) 55 Recoil Reduction 2 Item Schematics ----------------- None Robot Schematics ------------------ None Fabricated ------------ Nothing Repaired ---------- Nothing Alien Tech Used ----------------- None Achievements -------------- None Challenges ------------ None Game ------ Seed CloakingNavigationMeganuke Manual? 0 Play Time 00:08:48 Cumulative 95.3 hours Start 2025.05.25 @ 13:31:06 End 2025.05.25 @ 13:41:56 Sessions 1 Manual Loads 0 Difficulty Rogue Special Mode None Game No. 189 Rogue 189 Adventurer 0 Explorer 0 Win Type - Total 0 Types 0/0/0/0/0/0/0/0/0/0 Lore% 22 Gallery% 40 Achievement% 34 Wizard Run 0 Options --------- Layout 1 ASCII 0 Keyboard 1 Movement Arrows Keybinds 0 Fullscreen 2 Font 24/Smallcaps Map View 50x35 Zoom Use 0% Tactical HUD 1 Map Filters NONE Filters NONE Steam 1 RUN: 5f00e327-5f22-45de-bbb0-5d293ceb2f59